Cogmind - Beta 13 X1 @@@ ROGUE MODE // 2023.06.30 @ 16:46:37 Player: biogoob Result: Destroyed by Autobeam Turret with Autobeam Performance ------------- Evolutions (0) 0 Regions Visited (2) 400 Robots Destroyed (24) 120 Value Destroyed (567) 567 Prototype IDs (2) 40 Alien Tech Used (0) 0 Bonus (0) 0 TOTAL SCORE: 1127 Bonus ------- None Cogmind --------- Core Integrity 0/250 Matter 203/300 Energy 265/265 System Corruption 0% Temperature Cool (24) Movement Rolling (120) Ox1 Location -10/Subcaves Parts ------- > --- POWER (1) -------- Improved Ion Engine > --- PROPULSION (2) --- Subdweller Monowheel > --- UTILITY (2) ------ Medium Storage Unit Hardened Light Armor Plating > --- WEAPON (2) ------- Makeshift Shrapnel Gun > --- INVENTORY (10) --- Subdweller Power Source Subdweller Monowheel Hardened Light Armor Plating Scrap Shield Improved EM Shotgun Small Laser Subdweller Shrapnel Launcher Makeshift Spear Peak State ------------ > --- POWER ------------ Improved Ion Engine > --- PROPULSION ------- Spiked Treads Subdweller Monowheel > --- UTILITY ---------- Medium Storage Unit Hardened Light Armor Plating > --- WEAPON ----------- Heavy Riot Gun Subdweller Shrapnel Launcher > --- INVENTORY -------- Subdweller Power Source Hardened Light Armor Plating Scrap Shield Improved EM Shotgun Small Laser Battle Rifle Subdweller Machine Gun Makeshift Spear [Rating: 17] Favorites ----------- Power Improved Ion Engine Engine Improved Ion Engine Propulsion Aluminum Leg Treads Spiked Treads Leg Aluminum Leg Wheel Subdweller Monowheel Utility Medium Storage Unit Device Seismic Detector Storage Medium Storage Unit Protection Hardened Light Armor Plating Weapon Heavy Riot Gun Energy Gun Heavy Riot Gun Ballistic Gun Battle Rifle Launcher Subdweller Shrapnel Launcher Build | -11 -10 -10 ------- Run | Jun Mat Sub Slots Evolved . | . . . Power . | . . . Propulsion . | . . . Utility . | . . . Weapon . | . . . Parts Attached 32 | . 17 15 Power 3 | . 1 2 Engine 3 | . 1 2 Core . | . . . Reactor . | . . . Propulsion 7 | . 3 4 Treads 3 | . 1 2 Leg 1 | . 1 . Wheel 3 | . 1 2 Hover . | . . . Flight . | . . . Utility 8 | . 6 2 Device 3 | . 3 . Storage 1 | . 1 . Processor . | . . . Hackware . | . . . Protection 4 | . 2 2 Artifact . | . . . Weapon 14 | . 7 7 Energy Gun 6 | . 5 1 Energy Cannon . | . . . Ballistic Gun 6 | . 2 4 Ballistic Cannon . | . . . Launcher 2 | . . 2 Special Weapon . | . . . Impact Weapon . | . . . Slashing Weapon . | . . . Piercing Weapon . | . . . Special Melee Weapon . | . . . Unidentified Prototypes . | . . . Parts Lost 8 | . 3 5 Power . | . . . Propulsion 2 | . 1 1 Utility 2 | . 1 1 Weapon 4 | . 1 3 Highest Loss Streak 2 | . 2 2 To Critical Strikes . | . . . Average Slot Usage (%) 94 | . 95 94 Engine 14 | . 14 14 Treads 8 | . 3 11 Leg 9 | . 18 3 Wheel 8 | . 1 12 Device 5 | . 8 3 Storage 14 | . 14 14 Protection 6 | . 4 6 Energy Gun 16 | . 20 13 Ballistic Gun 6 | . 6 6 Launcher 4 | . . 7 Naked Turns . | . . . Heaviest Build 34 | 12 24 34 Greatest Support 40 | 20 20 40 Greatest Overweight (x) 4 | . 4 1 Average Overweight (x) . | . . . Largest Inventory Capacity 10 | . 10 10 Average Capacity 9 | . 8 10 Most Carried 10 | . 10 10 Average Carried 9 | . 8 9 Final Capacity 10 | 8 10 10 Final Carried 9 | 6 9 9 Class Distribution -------------------- 57% | Mutant 22% | Derelict-Mutant 19% | Subdweller-Mutant Dominant Class ---------------- Mutant | -10/Materials Derelict-Mutant | -10/Subcaves Resources | -11 -10 -10 ----------- Run | Jun Mat Sub Matter Collected 720 | 193 152 375 Remotely . | . . . Salvage Created 621 | . 330 291 Parts 43 | . 25 18 Haulers Intercepted . | . . . Recyclers Shooed . | . . . Parts Field Recycled . | . . . Retrieved Matter . | . . . Parts Self-Destructed 7 | . . 7 Prevented . | . . . Kills | -11 -10 -10 ------- Run | Jun Mat Sub Combat Hostiles Destroyed 21 | . 10 11 Guns 19 | . 9 10 AOE 2 | . 1 1 Classes Destroyed 6 | . 4 2 Worker 1 | . 1 . Watcher 2 | . 2 . Swarmer 10 | . 6 4 Grunt 4 | . 4 . Sentry 1 | . . 1 Subdweller 6 | . . 6 Best Kill Streak 5 | . 5 4 Combat Bots Only 5 | . 5 4 Max Kills in Single Turn 2 | . 2 1 Gunslinging . | . . . Exploded 1 | . 1 1 Melee . | . . . Uniques/NPCs Destroyed . | . . . Combat | -11 -10 -10 -------- Run | Jun Mat Sub Damage Taken 1503 | . 471 1032 Core 257 | . 62 195 Absorbed by Shields . | . . . Core Remaining (%) 100 | 100 . . Volleys Fired 61 | . 32 29 Largest 2 | . 2 2 Hottest 100 | . 90 100 Shots Fired 114 | . 59 55 Gun 100 | . 59 41 Cannon . | . . . Launcher 14 | . . 14 Special . | . . . Kinetic 38 | . 7 31 Thermal 28 | . 28 . Explosive 4 | . . 4 Electromagnetic 44 | . 24 20 Robot Hit Streak 10 | . 5 10 Robot Miss Streak 3 | . 2 3 Penetration Max . | . . . Secondary Targets 2 | . 1 1 Max Gunslinging Chain 1 | . 1 1 Shots Hit Robots 62 | . 35 27 Core Hits 40 | . 20 20 Critical Kills . | . . . Critical Parts Destroyed . | . . . Critical Strikes 2 | . 2 . Burn 1 | . 1 . Corrupt 1 | . 1 . Melee Attacks . | . . . Impact . | . . . Slashing . | . . . Piercing . | . . . Sneak Attacks . | . . . Combat Hostiles . | . . . Follow-up Attacks . | . . . Damage Inflicted 1587 | . 581 1006 Guns 943 | . 460 483 Cannons . | . . . Explosions 644 | . 121 523 Melee . | . . . Ramming . | . . . Kinetic 731 | . 29 702 Thermal 385 | . 349 36 Explosive 52 | . . 52 Electromagnetic 419 | . 203 216 Impact . | . . . Slashing . | . . . Piercing . | . . . Highest Corruption . | . . . Average Corruption . | . . . Corruption Purged . | . . . Corruption Blocked . | . . . Overload Shots . | . . . Overflow Damage 2 | . . 2 Projectiles . | . . . Explosions 2 | . . 2 Melee . | . . . Knockbacks . | . . . Impact . | . . . Kinetic . | . . . Secondary . | . . . Self-Inflicted Damage 47 | . 38 9 Shots 2 | . 1 1 Rammed . | . . . Targets Rammed . | . . . Kicked . | . . . Crushed . | . . . Highest Temperature 315 | . 315 25 Average Temperature 113 | . 120 12 Received Heat Transfer 429 | . 117 312 Effects 2 | . 2 . Energy Bleed 2 | . 2 . Siege Activations . | . . . Robots Corrupted . | . . . Combat Hostiles . | . . . Parts Fried 1 | . 1 . Impact Corruptions . | . . . Robots Melted . | . . . Combat Hostiles . | . . . Parts Melted 1 | . . 1 Heat Transferred 1040 | . 990 50 Parts Sabotaged . | . . . Parts Stolen . | . . . Parts Stripped . | . . . Power Chain Reactions 2 | . 1 1 Missiles Intercepted . | . . . Alert | -11 -10 -10 ------- Run | Jun Mat Sub Peak Influence 253 | . 253 . Initial . | . . . Average 105 | . 105 . Maximum Alert Level 1 | . 1 . Low Security (%) 76 | . 76 . Level 1 23 | . 23 . Level 2 . | . . . Level 3 . | . . . Level 4 . | . . . Level 5 . | . . . High Security . | . . . Max Security . | . . . Squads Dispatched 1 | . 1 . Investigation . | . . . Extermination . | . . . Reinforcement 1 | . 1 . Assault . | . . . Garrison . | . . . Intercept . | . . . Searches Triggered . | . . . Construction Impeded . | . . . Haulers Reinforced . | . . . Active Scanning Responses . | . . . Cargo Convoy Interrupts . | . . . Stealth | -11 -10 -10 --------- Run | Jun Mat Sub Distress Signals 2 | . 2 . Communications Jammed . | . . . Distress Signals . | . . . Times Spotted 55 | . 17 38 Peak Tracking Total 6 | . 6 6 Tactical Retreats 3 | . . 3 Traps | -11 -10 -10 ------- Run | Jun Mat Sub Traps Triggered 5 | . 2 3 Indirectly . | . . . Trap Hack Attempts . | . . . Triggered . | . . . Disarmed . | . . . Reprogrammed . | . . . Reused . | . . . Traps Extracted . | . . . Installed . | . . . Triggered . | . . . Machines | -11 -10 -10 ---------- Run | Jun Mat Sub Machines Disabled . | . . . Max in Single Turn . | . . . Machines Repaired . | . . . Machines Sabotaged . | . . . Overloaded Fab Kills . | . . . Hacking | -11 -10 -10 --------- Run | Jun Mat Sub Machines Accessed 5 | . 4 1 Terminals 3 | . 3 . Fabricators . | . . . Repair Stations . | . . . Recycling Units 1 | . 1 . Scanalyzers . | . . . Garrison Access . | . . . Total Hacks 12 | . 10 2 Successful 7 | . 5 2 Failed 5 | . 5 . Catastrophic . | . . . Database Lockouts . | . . . Manual . | . . . Terminals 8 | . 8 . Fabricators . | . . . Repair Stations . | . . . Recycling Units 2 | . 2 . Scanalyzers . | . . . Garrison Access . | . . . Terminal Hacks 6 | . 4 2 Record 2 | . . 2 Prototype ID Bank 1 | . 1 . Locate Traps 2 | . 2 . Zone Layout 1 | . 1 . Fabricator Hacks . | . . . Repair Station Hacks . | . . . Recycling Unit Hacks 1 | . 1 . Report Inventory 1 | . 1 . Scanalyzer . | . . . Garrison Access Hacks . | . . . Unauthorized Hacks . | . . . Terminals . | . . . Fabricators . | . . . Repair Stations . | . . . Recycling Units . | . . . Scanalyzers . | . . . Garrison Access . | . . . Data Cores Recovered . | . . . Used . | . . . Hacking Detections 3 | . 3 . Full Trace Events . | . . . Feedback Events . | . . . Feedback Blocked . | . . . Robot Schematics Acquired . | . . . Robots Built . | . . . Authchips . | . . . Time . | . . . Total Robot Build Rating . | . . . Part Schematics Acquired . | . . . Parts Built . | . . . Authchips . | . . . Time . | . . . Total Part Build Rating . | . . . Parts Repaired . | . . . Time . | . . . Parts Recycled . | . . . Recycled Matter . | . . . Retrieved Matter . | . . . Retrieved Components . | . . . Parts Scanalyzed . | . . . Part Schematics Acquired . | . . . Parts Damaged . | . . . Bothacking | -11 -10 -10 ------------ Run | Jun Mat Sub Used RIF Installer . | . . . Robots Hacked . | . . . Non-combat . | . . . Combat . | . . . Robot Hacks Applied . | . . . Relay Couplers Released . | . . . Fabnet Peak Effective % . | . . . Robots Rewired . | . . . Allies Hacked . | . . . Hacks Repelled . | . . . Allies | -11 -10 -10 -------- Run | Jun Mat Sub Total Allies . | . . . Largest Group . | . . . Highest-Rated Group . | . . . Highest-Rated Ally . | . . . Total Orders . | . . . Ally Attacks . | . . . Total Damage . | . . . Kills . | . . . Allies Corrupted . | . . . Allies Melted . | . . . Intel | -11 -10 -10 ------- Run | Jun Mat Sub Robot Analysis Total . | . . . Derelict Logs Recovered 2 | . . 2 Drone Launches . | . . . Drone Recoveries . | . . . Exploration | -11 -10 -10 ------------- Run | Jun Mat Sub Turns Passed 1914 | . 721 1193 Spaces Moved 1096 | 1 341 754 Core 2 | . 2 . Treads 301 | . 113 188 Legs 174 | 1 173 . Wheels 619 | . 53 566 Hover . | . . . Flight . | . . . Fastest Speed 115 | 120 115 115 Average Speed 148 | 120 164 141 Slowest Speed 260 | 120 260 260 Overloaded Moves . | . . . Propulsion Burnouts . | . . . Robots Hopped . | . . . Cave-ins Triggered . | . . . Exploration Rate (%) 41 | 3 76 46 Regions Visited 2 Branch Regions 1 Pre-discovered Areas . | . . . Known Exits Taken . | . . . Unknown Exits Taken 2 | 1 1 . Scrap Searched 12 | . . 12 Spaces Dug . | . . . Terrain Destroyed 104 | . 2 102 Melee . | . . . Projectile . | . . . AOE 104 | . 2 102 Terrain Rammed . | . . . Walls Destroyed . | . . . Machines Disabled . | . . . Actions | -11 -10 -10 --------- Run | Jun Mat Sub Total 1267 | . 442 825 Wait 50 | . 39 11 Move 1094 | . 340 754 Hop . | . . . Pick Up 13 | . 8 5 Fast Attach 10 | . 6 4 Attach 6 | . 3 3 Detach . | . . . Swap 16 | . 8 8 Drop 17 | . 6 11 Fire 61 | . 32 29 Melee . | . . . Ram . | . . . Kick . | . . . Crush . | . . . Escape Stasis . | . . . Rewire . | . . . Trap . | . . . Miscellaneous . | . . . Route ------- -11/Junkyard -10/Materials (discovered 5 exits: [*Mat x2] / [*Min x2] / *Sub) -10/Subcaves (discovered 1 exit: [*Rec]) History --------- Turn | Location | Event 1 | -11/Junkyard | Discovered new exit (range 0) 1 | -11/Junkyard | Entered Materials 315 | -10/Materials | Build established: Mutant 317 | -10/Materials | Discovered new exit (range 6) 400 | -10/Materials | Discovered new exit (range 7) 445 | -10/Materials | Discovered new exit (range 6) 666 | -10/Materials | Discovered new exit (range 11) 703 | -10/Materials | Discovered new exit (range 6) 722 | -10/Materials | Entered Subcaves 751 | -10/Subcaves | Learned Materials terminal intel 1007 | -10/Subcaves | Core integrity fell below 50% 1124 | -10/Subcaves | Shifting Twisted Machinery released Sub. Monowheel 1495 | -10/Subcaves | A swath of the cavern ceiling suddenly collapsed 1536 | -10/Subcaves | Build established: Subdweller-Mutant 1552 | -10/Subcaves | Learned Materials emergency access door positions 1564 | -10/Subcaves | Visited Clippyterm 1879 | -10/Subcaves | Core integrity fell below 20% 1908 | -10/Subcaves | Discovered new exit (range 13) 1915 | -10/Subcaves | Destroyed by Autobeam Turret with Autobeam Last Messages --------------- 01624_ Found 23 Matter. 01625_ Acquired 23 matter. 01629_ Dropped Sub. Machine Gun. 01629_ Acquired Mak. Shrapnel Gun. 01637_ Searching scrap... 01637_ Found Multitool. 01637_ Found 22 Matter. 01638_ Acquired 22 matter. 01869_ Hvy. Riot Gun destroyed. 01877_ Spk. Treads destroyed. 01879_ S-10 Pest destroyed. 01890_ Destroyed Flight Unit. 01890_ S-10 Pest destroyed. 01891_ Lgt. Ion Engine fries itself beyond repair. 01892_ Lgt. Assault Rifle fries itself beyond repair. 01896_ Acquired 14 matter. 01897_ Flight Unit fries itself beyond repair. 01897_ Lgt. Ion Engine fries itself beyond repair. 01908_ EXIT=FOUND 01915_ Battle Rifle destroyed. Map ----- +----------------------------------------------------+ | ## #??????######??????????????????????? | | ######?## ##?????????????????????? | | #### # # ### ##?????????????????????? | | # #??## # ###?????????????????????? | | ## ##??## # ### #####??##??????????????????? | | ?## ##??########## ## #??????????????????? | | ??#### ##??????????# ## #####??????????????????? | | ?????# #####?????#### ##??????????????????? | | ?????# ####### ### # ##??????????????????? | | ?????# ## # # #?????????????????? | | ?###?# #### ####;### # #????????????????? | | ## ## #?### # # # ; #????????????????? | | # ##?# #### ##;### ##????##??????????? | | # ##### #??# ;#;# ##???? #??????????? | | # ### # #??## %;;####### ##?????????? | | # #??# ##???###### %;## #?????????? | | # ##### ##?????????# % #?????????????? | | ## ## # #????????## ###??????????????? | | # ## #####????????# #????????????????? | | # # ## ##???????????# #????????????????? | | # #???????????# # #????????????????? | | # ###???????????# ## #????????????????? | | ## #?????????????# ## ##????????????????? | | ?# ##?????????????# ## ##?????????????????? | | ?##### #??????????????# ####??????????????????? | | ????# #??????????????# @ #?????????????????????? | | ????## ##??????????#" "#??????????????????? | | ##??# #??????????# #??????????????????? | | #??# #??????????# #??????????????????? | | [#??## ##??????????#" t t "#??????????????????? | | #??## ##??????????#" " " "#??????????????????? | | #### #??????????#"""" """"#??????????????????? | | # #??????????#####<#####??????????????????? | | ##??????????????###??????????????????????? | | #????????????????????????????????????????? | | # ##????????????????????????????????????????? | | ##?????????????????????????????????????????? | | ##??????????????????????????????????????????? | | ##????????????????????????????????????????##?? | | ##????????????????????????????????????????## ## | | #?######?????????????????????????????????## | | ### #????????????????????????????????## | | ## #???????????????????? ??????????? | | #???????????????????? #????????????# | | #???????????????????? #???????????# | | #????????????????????# ????####???# | | ## ####????????????????????? ##### ##??# | | #?##???????????????????????? #??## | | ###???????????????????###??# ?# ##### | | ## ##?????????????????# #### ?## # # | +----------------------------------------------------+ Best States ------------- Heat Dissipation 25 Energy Generation 15 Energy Capacity 265 Matter Stores 300 Matter Capacity 300 Sight Range 16 Robot Scan Range 14 Terrain Scan Density 10 Armor Coverage 150 Evasion (%) 45 Recoil Reduction 2 Item Schematics ----------------- None Robot Schematics ------------------ None Fabricated ------------ Nothing Alien Tech Used ----------------- None Achievements -------------- None Challenges ------------ None Game ------ Seed PhysicsPhysicsTerrabomb Manual? 0 Play Time 00:19:57 Cumulative 117.4 hours Start 2023.06.30 @ 15:45:10 End 2023.06.30 @ 16:46:37 Sessions 1 Manual Loads 0 Difficulty Rogue Special Mode None Game No. 139 Rogue 116 Adventurer 19 Explorer 4 Win Type - Total 1 Types 0/0/1/0/0/0/0/0/0 Lore% 49 Gallery% 53 Achievement% 46 Wizard Run 0 Options --------- ASCII 1 Keyboard 1 Movement Vi Keybinds 0 Fullscreen 2 Font 18/Terminus Map View 83x54 Tactical HUD 1 Map Filters SATURATION(80) Filters SATURATION(80) Steam 1 RUN: 5950be96-a698-4b50-9407-b4c6812a3043